fUSD/lending_fUSD_20240222
["ID","MTS","AMOUNT","RATE_DAILY","PERIOD"]
[314906685,1708631434040,-645.95508806,0.0002952,2]
[314906686,1708631437192,154.75,0.00028941,2]
[314906693,1708631438070,-154.75,0.00029192,2]
[314906694,1708631438080,-154.75,0.00029444,2]
[314906695,1708631438090,-1402.10859331,0.0002952,2]
[314906696,1708631438101,-688.1330014,0.0002952,2]
[314906697,1708631438112,-497.75012937,0.0002952,2]
[314906698,1708631438155,-50117.29936537,0.0002952,2]
[314906699,1708631438165,-150.0,0.00029529,2]
[314906700,1708631438175,-150.0,0.00029535,2]
[314906701,1708631438185,-681.84,0.00029545,2]
[314906703,1708631438195,-309.10074553,0.0002955,2]
[314906704,1708631438204,-150.0,0.00029551,2]
[314906706,1708631438214,-150.0,0.00029563,2]
[314906708,1708631438223,-150.0,0.00029564,2]
[314906709,1708631438232,-150.0,0.00029578,2]
[314906710,1708631438241,-3790.34461141,0.0002959,2]
[314906711,1708631438251,-1358.88521459,0.00029591,2]
[314906713,1708631438260,-150.0,0.00029597,2]
[314906715,1708631438269,-150.0,0.00029605,2]
[314906717,1708631438278,-302.4026063,0.00029616,2]
[314906719,1708631438288,-150.0,0.0002962,2]
[314906721,1708631438297,-1229.03881274,0.00029621,2]
[314906723,1708631438306,-150.0,0.00029626,2]
[314906725,1708631438316,-300.0,0.00029638,2]
[314906726,1708631438325,-150.0,0.00029645,2]
[314906727,1708631438334,-150.0,0.00029646,2]
[314906728,1708631438343,-150.0,0.00029651,2]
[314906729,1708631438352,-150.0,0.00029652,2]
[314906730,1708631438361,-150.0,0.00029662,2]
[314906731,1708631438370,-300.0,0.00029662,2]
[314906732,1708631438379,-150.0,0.00029664,2]
[314906733,1708631438388,-154.75,0.00029695,2]
[314906734,1708631438397,-681.84,0.00029695,2]
[314906735,1708631438406,-150.0,0.00029717,2]
[314906736,1708631438415,-204.272,0.00029723,2]
[314906737,1708631438425,-406.29,0.00029726,2]
[314906738,1708631438434,-917.7,0.00029726,2]
[314906739,1708631438444,-150.0,0.00029736,2]
[314906740,1708631438454,-150.0,0.00029736,2]
[314906741,1708631438463,-150.0,0.00029753,2]
[314906742,1708631438476,-1500.0,0.00029771,2]
[314906743,1708631438485,-1000.0,0.0002978,2]
[314906744,1708631438495,-738.54470599,0.0002978,4]
[314906745,1708631438504,-2500.0,0.0002978,2]
[314906746,1708631438513,-309.10074553,0.0002978,2]
[314906747,1708631438522,-150.0,0.00029798,2]
[314906748,1708631438531,-150.0,0.00029818,2]
[314906749,1708631438540,-1500.0,0.0002983,2]
[314906750,1708631438549,-150.0,0.00029842,2]
[314906751,1708631438558,-204.0,0.00029845,2]
[314906752,1708631438567,-150.0,0.00029845,2]
[314906753,1708631438577,-681.84,0.00029846,2]
[314906754,1708631438587,-164.4395094,0.0002985,2]
[314906755,1708631438595,-155.0,0.00029879,2]
[314906756,1708631438605,-230.58774355,0.00029879,2]
[314906757,1708631438614,-232819.52420242,0.0002988,2]
[314906758,1708631438638,-27124.32426852,0.0002988,2]
[314906759,1708631438648,-155.0,0.0002988,2]
[314906760,1708631438657,-311.08241579,0.0002988,2]
[314906761,1708631438669,-259.27,0.0002988,7]
[314906762,1708631438678,-500.0,0.0002988,2]
[314906763,1708631438688,-887.96006782,0.000299,2]
[314906764,1708631438697,-540.36244639,0.000299,2]
[314906765,1708631438706,-443.1664156,0.0002999,2]
[314906766,1708631438716,-681.84,0.00029997,2]
[314906767,1708631438725,-1000.0,0.00029999,2]
[314906768,1708631438735,-123752.8066468,0.0003,4]
[314906769,1708631438755,-1124.18808919,0.0003,4]
[314906770,1708631438867,-154.75,0.00029947,2]
[314906771,1708631438876,-22928.14119964,0.0003,4]
[314906772,1708631438909,-189607.43900664,0.0003,4]
[314906773,1708631438918,-1364.77539736,0.0003,4]
[314906774,1708631438928,-6612.3025,0.0003,7]
[314906775,1708631438938,-312.78337604,0.0003,4]
[314906776,1708631438947,-3000.0,0.0003,2]
[314906777,1708631438957,-3000.0,0.0003,2]
[314906778,1708631438966,-3000.0,0.0003,2]
[314906779,1708631438976,-3000.0,0.0003,2]
[314906780,1708631438985,-3000.0,0.0003,2]
[314906781,1708631438994,-3000.0,0.0003,2]
[314906782,1708631439004,-408.11,0.00030017,7]
[314906783,1708631439014,-168.78,0.0003007,2]
[314906784,1708631439024,-15661.44,0.00030137,2]
[314906785,1708631439317,-681.84,0.00030147,2]
[314906786,1708631439329,-2676.49,0.00030154,2]
[314906787,1708631439338,-540.36244633,0.00030181,2]
[314906788,1708631439348,-5244.0,0.00030265,2]
[314906789,1708631439357,-155.78,0.00030275,2]
[314906790,1708631439367,-166.2,0.00030276,2]
[314906791,1708631439378,-1358.88521459,0.0003028,2]
[314906792,1708631439387,-681.84,0.00030298,2]
[314906793,1708631439397,-164.4395094,0.00030315,2]
[314906794,1708631439406,-1229.03881274,0.00030345,2]
[314906795,1708631439416,-412.88,0.00030411,2]
[314906796,1708631439425,-515.18351411,0.00030428,2]
[314906797,1708631439435,-738.54470595,0.00030443,5]
[314906798,1708631439444,-681.84,0.00030449,2]
[314906799,1708631439454,-540.36244633,0.00030463,2]
[314906800,1708631439464,-1229.03881276,0.00030493,2]
[314906801,1708631439475,-1358.88521459,0.00030525,2]
[314906802,1708631439485,-681.84,0.000306,2]
[314906803,1708631439495,-887.96006778,0.00030653,2]
[314906804,1708631439504,-406.29,0.00030685,2]
[314906805,1708631439514,-917.7,0.00030685,2]
[314906806,1708631439523,-406.29,0.00030685,2]
[314906807,1708631439533,-917.7,0.00030685,2]
[314906808,1708631439542,-406.29,0.00030685,2]
[314906809,1708631439551,-917.7,0.00030685,2]
[314906810,1708631439561,-917.7,0.00030685,2]
[314906811,1708631439572,-909.5,0.00030685,2]
[314906812,1708631439581,-1358.88521464,0.00030686,2]
[314906813,1708631439590,-540.36244633,0.00030744,2]
[314906814,1708631439600,-681.84,0.0003075,2]
[314906815,1708631439610,-164.4395094,0.0003078,2]
[314906816,1708631439620,-6071.26858047,0.00030786,2]
[314906817,1708631439629,-252.524478,0.00030786,2]
[314906818,1708631439638,-282.25427763,0.00030786,2]
[314906819,1708631439647,-379.01621852,0.00030786,2]
[314906820,1708631439657,-162.72309136,0.00030859,2]
[314906821,1708631439667,-443.1664156,0.0003087,2]
[314906822,1708631439679,-65213.79715883,0.00030879,4]
[314906823,1708631439713,-2415.07061468,0.00030879,4]
[314906831,1708631444194,-154.75,0.00030198,2]
[314906832,1708631444205,-154.75,0.00030449,2]
[314906833,1708631444215,-2130.44480454,0.00030879,4]
[314906834,1708631444251,-1057165.76797395,0.00030879,4]
[314906835,1708631444261,-252.23582039,0.00030879,2]
[314906836,1708631444271,-537551.09355457,0.0003088,2]
[314906837,1708631444282,-629.42,0.00030886,2]
[314906838,1708631444291,-169.49473477,0.000309,2]
[314906839,1708631444301,-681.84,0.00030901,2]
[314906840,1708631444312,-174.4883725,0.00030999,2]
[314906841,1708631444322,-59603.0483556,0.00031,2]
[314906844,1708631444702,-832.38,0.00031,2]
[314906881,1708631448871,-257.70104907,0.00030999,4]
[314906882,1708631448881,-260.50152867,0.00030999,4]
[314906883,1708631448891,-9688.76055552,0.00031,2]
[314906884,1708631470604,208.46357501,0.0002509,2]
[314906885,1708631537788,7221.5192,0.00028992,2]
[314906886,1708631598976,200.0,0.00028759,2]
[314906887,1708631599401,200.0,0.0002876,2]
[314906888,1708631606929,800.0,0.00028759,2]
[314906889,1708631607220,800.0,0.0002876,2]
[314906890,1708631607605,800.0,0.0002876,2]
[314906891,1708631608096,800.0,0.0002876,2]
[314906892,1708631614094,204.0,0.00028845,2]
[314906893,1708631621562,200.0,0.0002876,2]
[314906894,1708631624688,424.41,0.0002817,2]
[314906895,1708631625474,500.0,0.0002876,2]
[314906896,1708631628985,200.0,0.0002876,2]
[314906898,1708631663941,150.999999,0.00025,2]
[314906899,1708631670333,199.0,0.000271,5]
[314906900,1708631795455,42907.0,0.00028261,2]
[314906901,1708631908534,1500.0,0.00029,2]
[314906902,1708631966800,15111.12,0.00028962,2]
[314906903,1708631969653,1500.0,0.00029,2]
[314906904,1708632014671,745.0,0.00029,2]
[314906905,1708632018417,250.0,0.00028972,2]
[314906906,1708632041413,5088.7,0.00028942,2]
[314906907,1708632051445,300.0,0.00028942,2]
[314906908,1708632121568,403.18,0.00027071,2]
[314906909,1708632133289,750.0,0.00025,3]
[314906910,1708632134378,800.0,0.00027,3]
[314906911,1708632135538,850.0,0.00029,3]
[314906912,1708632155503,250.0,0.00028768,2]
[314906913,1708632191314,2112.52,0.00028972,2]
[314906914,1708632262960,1922.37,0.00028929,2]
[314906915,1708632372553,2000.0,0.00028899,2]
[314906916,1708632380407,200.0,0.00028899,2]
[314906917,1708632427802,445.31,0.00028929,2]
[314906918,1708632482479,250.0,0.00028967,2]
[314906919,1708632508440,156.55232642,0.00028962,2]
[314906920,1708632533180,80000.0,0.00028,2]
[314906924,1708632602921,250.0,0.00028845,2]
[314906925,1708632630281,383.02,0.00027018,2]
[314906927,1708632632225,-306.74013642,0.0002902,2]
[314906928,1708632632238,-3377.34096358,0.0002902,2]
[314906929,1708632632248,-150.0,0.00029061,2]
[314906930,1708632632257,-737.81149529,0.00029062,2]
[314906931,1708632632267,-737.81149529,0.00029062,2]
[314906932,1708632632277,-737.81149529,0.00029062,2]
[314906933,1708632632287,-737.81149529,0.00029062,2]
[314906934,1708632632298,-737.81149529,0.00029062,2]
[314906935,1708632632307,-737.81149529,0.00029062,2]
[314906936,1708632632317,-800.0,0.00029065,2]
[314906937,1708632632326,-877.708,0.0002912,2]
[314906938,1708632632335,-149115.00009551,0.0002912,2]
[314906939,1708632632365,-16463.58830449,0.0002912,2]
[314906940,1708632632375,-253.1296,0.0002912,2]
[314906941,1708632632385,-1509.4804,0.0002912,2]
[314906942,1708632632394,-156.55232638,0.00029212,2]
[314906943,1708632632404,-165.8,0.00029215,2]
[314906944,1708632632413,-499.99,0.00029282,2]
[314906945,1708632632423,-383.02,0.00029282,2]
[314906946,1708632632433,-912.447,0.0002932,2]
[314906947,1708632632443,-23425.4772,0.0002932,2]
[314906948,1708632632452,-420.1978,0.0002932,2]
[314906949,1708632632462,-177.55,0.0002932,2]
[314906950,1708632632473,-1682.75,0.00029378,2]
[314906951,1708632632482,-187821.6817152,0.0002942,2]
[314906952,1708632632507,-5944.46078628,0.0002942,2]
[314906956,1708632632527,-259.418,0.0002942,2]
[314906958,1708632632539,-371.47565237,0.0002942,2]
[314906961,1708632638106,-996.68012098,0.0002942,2]
[314906962,1708632638119,-994.82961993,0.0002942,2]
[314906963,1708632638163,-48611.45410524,0.0002942,2]
[314906964,1708632638174,-158.46349329,0.00029449,3]
[314906965,1708632638184,-156.55232638,0.00029461,2]
[314906966,1708632638195,-311.05,0.0002969,2]
[314906967,1708632638205,-156.55232638,0.00029711,2]
[314906968,1708632638215,-532.7760407,0.00029855,2]
[314906969,1708632638225,-540.36244633,0.00029855,2]
[314906970,1708632638235,-221.5832078,0.0002987,2]
[314906971,1708632638245,-1000.0,0.00029879,2]
[314906972,1708632638255,-181130.7302563,0.0002988,2]
[314906973,1708632638325,-749.54311787,0.0002988,2]
[314906974,1708632638338,-741.27723955,0.0002988,2]
[314906975,1708632638354,-420.8888349,0.0002988,2]
[314906976,1708632638366,-313.89851893,0.0002988,2]
[314907036,1708632640793,-674.679,0.0002988,2]
[314907045,1708632643229,-1405.81876783,0.0002988,2]
[314907046,1708632643290,-729.36175698,0.0002988,2]
[314907047,1708632643303,-699.48825218,0.0002988,2]
[314907048,1708632643446,-3874.61700845,0.0002988,2]
[314907050,1708632645302,-257.21672818,0.0002988,2]
[314907051,1708632645318,-840.12227558,0.0002988,2]
[314907052,1708632645336,-375.6832297,0.0002988,2]
[314907055,1708632646222,-309.18,0.0002988,2]
[314907056,1708632646330,-12842.79548042,0.0002988,2]
[314907057,1708632646343,-8921.79940753,0.0002988,2]
[314907058,1708632646501,-934.53984024,0.0002988,2]
[314907059,1708632646513,-11377.0671066,0.0002988,2]
[314907064,1708632780510,1652.48,0.00028967,2]
[314907065,1708632798452,200.0,0.00028735,2]
[314907066,1708632804102,800.0,0.00028735,2]
[314907067,1708632813708,200.0,0.00028735,2]
[314907068,1708632819313,200.0,0.00028735,2]
[314907069,1708632882259,840.0,0.00028967,2]
[314907070,1708633154228,383.01,0.00027415,2]
[314907071,1708633398944,156.54801764,0.0002892,2]
[314907072,1708633639914,363.85,0.00027174,2]
[314907073,1708633654420,156.73,0.00028685,2]
[314907074,1708633654659,156.73,0.00028778,2]
[314907075,1708633654867,156.73,0.00028871,2]
[314907076,1708633655111,156.73,0.00028965,2]
[314907077,1708633733534,175.93159875,0.0002892,2]
[314907078,1708633792110,2905.75,0.00028334,2]
[314907079,1708633792401,2905.75,0.00028498,2]
[314907080,1708633793220,2905.75,0.00028662,2]
[314907081,1708633793552,2905.75,0.00028825,2]
[314907082,1708633794104,2905.75,0.00028989,2]
[314907083,1708633801824,151.022305,0.00028998,2]
[314907084,1708633803418,151.022305,0.00028998,2]
[314907085,1708633803888,151.022305,0.00028998,2]
[314907086,1708633804766,151.022305,0.00028998,2]
[314907087,1708633804900,151.022305,0.00028998,2]
[314907088,1708633808694,21036.139,0.0002895,2]
[314907089,1708633826904,672.0,0.00028342,2]
[314907090,1708633828690,1402.29,0.00028462,2]
[314907096,1708633833689,-737.81149529,0.00029017,2]
[314907097,1708633833699,-10.63253244,0.00029018,2]
[314907098,1708633833838,-144.68685482,0.00029018,2]
[314907099,1708633833848,-1048.76037752,0.00029018,2]
[314907100,1708633833858,-1036.69191859,0.00029019,2]
[314907101,1708633833867,-150.0,0.00029019,2]
[314907102,1708633833877,-155.0,0.0002902,2]
[314907103,1708633833887,-6447.9582,0.0002902,2]
[314907104,1708633833897,-1161.0181,0.0002902,2]
[314907105,1708633833912,-382.8555,0.0002902,2]
[314907106,1708633833923,-1187.8292,0.0002902,2]
[314907107,1708633833933,-2500.0,0.0002902,2]
[314907108,1708633833944,-3198.366,0.0002902,2]
[314907109,1708633833954,-1887.73,0.0002905,2]
[314907110,1708633833964,-156.73,0.00029058,2]
[314907111,1708633833974,-205.0,0.00029076,2]
[314907112,1708633833984,-181.73,0.00029092,2]
[314907113,1708633833994,-1011.33,0.00029095,2]
[314907114,1708633834004,-250.0,0.00029102,2]
[314907115,1708633834014,-19076.76,0.00029102,2]
[314907116,1708633834024,-452.79,0.0002911,3]
[314907117,1708633834035,-23875.98864605,0.0002912,2]
[314907119,1708633834047,-3288.27053005,0.0002912,2]
[314907125,1708633834073,-2173.84369776,0.0002912,2]
[314907127,1708633834085,-2075.04,0.0002912,2]
[314907130,1708633834144,-20655.55816819,0.0002912,2]
[314907136,1708633838309,-5171.4663,0.0002912,2]
[314907137,1708633838421,-83616.02615795,0.0002912,2]
[314907138,1708633838431,-199.9,0.00029123,2]
[314907139,1708633838441,-356.24,0.00029132,2]
[314907140,1708633838451,-156.73,0.00029152,2]
[314907141,1708633838461,-2905.75,0.00029153,2]
[314907142,1708633838472,-328.0,0.00029173,2]
[314907143,1708633838482,-156.54801762,0.00029182,2]
[314907144,1708633838506,-250.0,0.00029227,2]
[314907145,1708633838520,-219.27,0.00029227,2]
[314907146,1708633838531,-156.73,0.00029245,2]
[314907147,1708633838541,-1377.06,0.0002928,2]
[314907148,1708633838552,-2000.0,0.0002928,2]
[314907149,1708633838562,-2905.75,0.00029316,2]
[314907150,1708633838574,-156.73,0.00029339,2]
[314907151,1708633838584,-175.93159875,0.0002936,2]
[314907152,1708633838594,-156.73,0.00029432,2]
[314907153,1708633838605,-363.85,0.00029438,2]
[314907155,1708633838616,-156.54801762,0.00029444,2]
[314907156,1708633838625,-158.46349329,0.00029449,3]
[314907157,1708633838635,-499.99,0.00029449,2]
[314907158,1708633838644,-2905.75,0.0002948,2]
[314907159,1708633838659,-167.5,0.00029496,2]
[314907160,1708633838668,-156.73,0.00029525,2]
[314907161,1708633838678,-156.73,0.00029619,2]
[314907162,1708633838688,-2905.75,0.00029644,2]
[314907163,1708633838697,-11670.0,0.0002966,2]
[314907164,1708633838707,-156.54801762,0.00029705,2]
[314907165,1708633838717,-156.73,0.00029712,2]
[314907166,1708633838726,-339.702,0.0002978,2]
[314907167,1708633838736,-175.93159875,0.00029799,2]
[314907168,1708633838746,-156.73,0.00029806,2]
[314907169,1708633838755,-2905.75,0.00029807,2]
[314907170,1708633838765,-179.82248248,0.00029812,4]
[314907171,1708633838774,-887.65989458,0.00029816,4]
[314907172,1708633838785,-79558.09344163,0.0002988,2]
[314907173,1708633838795,-156.73,0.00029899,2]
[314907174,1708633838805,-156.54801762,0.00029967,2]
[314907175,1708633838815,-179.5,0.00029986,2]
[314907176,1708633838825,-156.73,0.00029993,2]
[314907177,1708633838835,-3000.0,0.0003,2]
[314907178,1708633838845,-3000.0,0.0003,2]
[314907179,1708633838855,-3000.0,0.0003,2]
[314907180,1708633838865,-3000.0,0.0003,2]
[314907181,1708633838874,-3000.0,0.0003,2]
[314907182,1708633838885,-3000.0,0.0003,2]
[314907183,1708633838894,-1000.0,0.0003,2]
[314907184,1708633838906,-1000.0,0.00030009,2]
[314907185,1708633838916,-156.73,0.00030086,2]
[314907186,1708633838932,-167.5,0.00030086,2]
[314907187,1708633838942,-1370.58862959,0.00030179,2]
[314907188,1708633838952,-156.73,0.00030179,2]
[314907189,1708633838962,-200.0,0.00030197,2]
[314907190,1708633838972,-800.0,0.00030197,2]
[314907191,1708633838983,-200.0,0.00030197,2]
[314907192,1708633838993,-156.54801762,0.00030229,2]
[314907193,1708633839003,-150.0,0.00030331,2]
[314907194,1708633839013,-151.89,0.00030378,2]
[314907195,1708633839024,-156.54801762,0.00030491,2]
[314907196,1708633839034,-887.65989455,0.00030493,5]
[314907197,1708633839045,-151.89,0.00030547,2]
[314907198,1708633839055,-356.24,0.00030588,2]
[314907199,1708633839065,-167.5,0.00030676,2]
[314907200,1708633839075,-151.89,0.00030716,2]
[314907201,1708633839085,-156.54801762,0.00030753,2]
[314907202,1708633839095,-158.0,0.00030781,2]
[314907203,1708633839104,-1608.63597381,0.00030785,2]
[314907204,1708633839114,-300.0,0.000308,3]
[314907205,1708633839125,-151.89,0.00030885,2]
[314907206,1708633839135,-155.0,0.000309,2]
[314907207,1708633839144,-5482.5529137,0.000309,2]
[314907208,1708633839161,-219.20237588,0.000309,2]
[314907209,1708633839171,-1856.51094704,0.000309,2]
[314907210,1708633839183,-3845.24434245,0.000309,2]
[314907211,1708633839194,-2051.46518728,0.000309,2]
[314907212,1708633839207,-1997.17268186,0.000309,2]
[314907217,1708633840968,-1653.11742035,0.000309,2]
[314907218,1708633840978,-177.69,0.000309,2]
[314907219,1708633840989,-5701.75528949,0.000309,2]
[314907220,1708633840999,-5701.75528949,0.000309,2]
[314907221,1708633841009,-5701.75528949,0.000309,2]
[314907222,1708633841019,-5701.75528949,0.000309,2]
[314907223,1708633841029,-5701.75528949,0.000309,2]
[314907224,1708633841038,-5701.75528949,0.000309,2]
[314907225,1708633841048,-5701.75528949,0.000309,2]
[314907226,1708633841058,-5701.75528949,0.00030949,2]
[314907227,1708633841068,-5691.5066064,0.00030989,2]
[314907228,1708633841078,-135869.9854531,0.00030989,2]
[314907229,1708633841088,-162.45994033,0.00030999,2]
[314907230,1708633841098,-4981.76421879,0.00030999,2]
[314907231,1708633841108,-14220.01313753,0.00031,2]
[314907232,1708633841118,-10595.04051176,0.00031,2]
[314907233,1708633841129,-900.0,0.00031,3]
[314907234,1708633841139,-156.54801762,0.00031015,2]
[314907235,1708633841149,-1030.83,0.0003105,2]
[314907236,1708633841160,-681.84,0.00031052,2]
[314907237,1708633841170,-151.89,0.00031053,2]
[314907238,1708633841180,-5701.75528949,0.00031152,2]
[314907239,1708633841189,-887.65989455,0.00031171,5]
[314907240,1708633841199,-681.84,0.00031203,2]
[314907241,1708633841209,-151.89,0.00031222,2]
[314907242,1708633841219,-2940.0,0.00031255,2]
[314907243,1708633841229,-167.5,0.00031266,2]
[314907244,1708633841239,-156.54801762,0.00031276,2]
[314907245,1708633841249,-165.24,0.00031324,2]
[314907246,1708633841259,-158.0,0.00031329,2]
[314907247,1708633841269,-179.82248245,0.00031348,5]
[314907248,1708633841279,-681.84,0.00031353,2]
[314907249,1708633841289,-5701.75528949,0.00031355,2]
[314907250,1708633841299,-151.89,0.00031391,2]
[314907251,1708633841309,-8525.38771117,0.0003143,4]
[314907252,1708633841319,-150.0,0.00031448,5]
[314907253,1708633841330,-177.69,0.00031448,2]
[314907254,1708633841341,-681.84,0.00031504,2]
[314907255,1708633841350,-156.54801762,0.00031538,2]
[314907256,1708633841361,-5701.75528949,0.00031558,2]
[314907257,1708633841372,-151.89,0.0003156,2]
[314907258,1708633841386,-152.0,0.00031615,3]
[314907259,1708633841396,-258.41,0.00031644,2]
[314907260,1708633841407,-363.85,0.00031702,2]
[314907261,1708633841420,-250.0,0.0003171,2]
[314907262,1708633841430,-151.89,0.00031729,2]
[314907263,1708633841440,-5701.75528949,0.00031761,2]
[314907264,1708633841451,-532.7760407,0.0003179,2]
[314907265,1708633841462,-540.36244633,0.0003179,2]
[314907266,1708633841473,-198.63832376,0.0003179,2]
[314907267,1708633841484,-248.93492663,0.000318,2]
[314907268,1708633841494,-200.0,0.000318,4]
[314907269,1708633841505,-168.13605804,0.000318,2]
[314907270,1708633841515,-876.28534839,0.000318,3]
[314907271,1708633841525,-5000.0,0.000318,2]
[314907272,1708633841536,-156.54801762,0.000318,2]
[314907273,1708633841546,-114797.82005886,0.000318,2]
[314907274,1708633841707,-533.8824402,0.000318,2]
[314907275,1708633841719,-2416.51113233,0.000318,2]
[314907276,1708633841732,-520.2384,0.000318,2]
[314907285,1708633843429,-269.8800002,0.000318,2]
[314907286,1708633844230,-162.45994033,0.00030999,2]
[314907287,1708633844240,-36997.61818341,0.000318,2]
[314907288,1708633844249,-1163.0390151,0.000318,2]
[314907289,1708633844260,-22.15100762,0.000318,2]
[314907299,1708633846603,-348.431,0.0002902,2]
[314907300,1708633846613,-2631.369,0.00030999,2]
[314907301,1708633849483,-1608.63597381,0.0003086,2]
[314907302,1708633849495,-1147.55,0.00030986,2]
[314907303,1708633849504,-991.30143321,0.00031799,4]
[314907304,1708633849514,-158.95473824,0.00031799,2]
[314907305,1708633849524,-4250.57804631,0.000318,2]
[314907306,1708633849534,-682.02258168,0.000318,2]
[314907307,1708633849544,-6221.43800859,0.00031826,2]
[314907308,1708633849555,-150.0,0.00031837,2]
[314907309,1708633849564,-150.282,0.00031837,2]
[314907310,1708633849574,-150.0,0.00031837,2]
[314907311,1708633849584,-150.0,0.00031837,2]
[314907312,1708633849594,-150.1,0.00031837,2]
[314907313,1708633849604,-150.0,0.00031837,2]
[314907314,1708633849614,-150.0,0.00031837,2]
[314907315,1708633849623,-887.65989455,0.00031848,5]
[314907316,1708633849633,-167.5,0.00031856,2]
[314907317,1708633849642,-158.0,0.00031877,2]
[314907318,1708633849651,-672.0,0.00031884,2]
[314907319,1708633849663,-80878.6941117,0.0003189,2]
[314907320,1708633849673,-151.89,0.00031897,2]
[314907321,1708633849682,-1372.0,0.00031898,2]
[314907322,1708633849692,-7432.0,0.00031898,2]
[314907323,1708633849702,-2763.957,0.00031898,2]
[314907324,1708633849711,-2294.0,0.00031898,2]
[314907325,1708633849721,-19886.0,0.00031898,2]
[314907326,1708633849730,-4106.0,0.00031898,2]
[314907327,1708633849740,-150.0,0.00031898,2]
[314907328,1708633849750,-2933.0,0.00031898,2]
[314907329,1708633849759,-17511.676,0.00031898,2]
[314907330,1708633849768,-458.0,0.00031898,2]
[314907331,1708633849778,-156052.54677408,0.000319,4]
[314907332,1708633849790,-472847.4157829,0.000319,4]
[314907333,1708633849806,-5189.7,0.000319,4]
[314907334,1708633849885,-542.96175472,0.000319,4]
[314907335,1708633849923,-4981.76421879,0.00031799,2]
[314907336,1708633849932,-75212.37593248,0.000319,4]
[314907961,1708633856270,2286.8003,0.0002892,2]
[314908172,1708633880457,466.9179,0.00028917,2]
[314908173,1708633941899,750.0,0.00025,3]
[314908174,1708633947318,800.0,0.00027,3]
[314908175,1708633948656,850.0,0.00029,3]
[314908176,1708633965533,2455.0303,0.0002892,2]
[314908177,1708633970316,77612.6561,0.0002892,2]
[314908178,1708634053966,151.022305,0.00029,2]
[314908179,1708634055437,151.022305,0.00029,2]
[314908180,1708634056350,151.022305,0.00029,2]
[314908181,1708634057171,151.022305,0.00029,2]
[314908182,1708634057957,151.022305,0.00029,2]
[314908183,1708634058785,151.022305,0.00029,2]
[314908184,1708634059576,151.022305,0.00029,2]
[314908185,1708634060341,151.022305,0.00029,2]
[314908186,1708634061159,151.022305,0.00029,2]
[314908187,1708634062029,151.022305,0.00029,2]
[314908188,1708634064506,151.022305,0.00029,2]
[314908189,1708634065310,151.022305,0.00029,2]
[314908190,1708634066164,151.022305,0.00029,2]
[314908191,1708634067011,151.022305,0.00029,2]
[314908192,1708634068398,151.022305,0.00029,2]
[314908193,1708634116929,157.57875607,0.0002892,2]
[314908194,1708634122376,151.022305,0.00029,2]
[314908195,1708634122847,151.022305,0.00029,2]
[314908196,1708634123611,151.022305,0.00029,2]
[314908197,1708634124430,151.022305,0.00029,2]
[314908198,1708634125228,151.022305,0.00029,2]
[314908199,1708634126033,151.022305,0.00029,2]
[314908200,1708634126768,151.022305,0.00029,2]
[314908201,1708634127509,151.022305,0.00029,2]
[314908202,1708634128180,151.022305,0.00029,2]
[314908203,1708634128876,151.022305,0.00029,2]
[314908204,1708634129560,151.022305,0.00029,2]
[314908205,1708634130447,151.022305,0.00029,2]